fUST/lending_fUST_20250424
["ID","MTS","AMOUNT","RATE_DAILY","PERIOD"]
[358819333,1745465436595,-817.58,0.00021917,2]
[358819334,1745465436605,-817.58,0.00021917,2]
[358819335,1745465436615,-817.58,0.00021917,2]
[358819336,1745465436625,-817.58,0.00021917,2]
[358819337,1745465436634,-817.58,0.00021917,2]
[358819338,1745465436644,-817.7,0.00021917,2]
[358819339,1745465436653,-500.0,0.00021917,2]
[358819340,1745465436663,-503.58436032,0.00021917,2]
[358819341,1745465436672,-500.0,0.00021917,2]
[358819342,1745465436682,-500.0,0.00021917,2]
[358819343,1745465436692,-526.71525748,0.00021917,2]
[358819344,1745465436702,-515.25885162,0.00021917,2]
[358819345,1745465436714,-230.42463827,0.00021917,2]
[358819346,1745465436741,-269.57536173,0.00021917,2]
[358819347,1745465436752,-500.0,0.00021917,2]
[358819348,1745465436764,-500.0,0.00021917,2]
[358819349,1745465436774,-505.64438078,0.00021917,2]
[358819350,1745465436786,-500.0,0.00021917,2]
[358819351,1745465436796,-500.0,0.00021917,2]
[358819352,1745465436806,-500.0,0.00021917,2]
[358819353,1745465436815,-500.0,0.00021917,2]
[358819354,1745465436825,-500.0,0.00021917,2]
[358819355,1745465436834,-500.0,0.00021917,2]
[358819356,1745465436844,-500.0,0.00021917,2]
[358819357,1745465436853,-500.0,0.00021917,2]
[358819358,1745465436863,-532.50515419,0.00021917,2]
[358819359,1745465436873,-500.0,0.00021917,2]
[358819360,1745465436883,-500.0,0.00021917,2]
[358819361,1745465436892,-500.0,0.00021917,2]
[358819362,1745465436902,-1089.35,0.00021917,2]
[358819363,1745465436911,-1089.35,0.00021917,2]
[358819364,1745465436921,-1089.35,0.00021917,2]
[358819365,1745465436931,-1089.35,0.00021917,2]
[358819366,1745465436940,-1089.35,0.00021917,2]
[358819367,1745465436950,-525.98,0.00021917,2]
[358819368,1745465436959,-1089.35,0.00021917,2]
[358819369,1745465436968,-1089.35,0.00021917,2]
[358819370,1745465436977,-1089.35,0.00021917,2]
[358819371,1745465436987,-1089.35,0.00021917,2]
[358819372,1745465436996,-1089.35,0.00021917,2]
[358819373,1745465437006,-500.0,0.00021917,2]
[358819374,1745465437016,-1089.35,0.00021917,2]
[358819375,1745465437025,-1089.35,0.00021917,2]
[358819376,1745465437034,-1089.35,0.00021917,2]
[358819377,1745465437043,-1089.35,0.00021917,2]
[358819378,1745465437052,-1089.35,0.00021917,2]
[358819379,1745465437062,-1089.35,0.00021917,2]
[358819380,1745465437071,-1089.35,0.00021917,2]
[358819381,1745465437081,-1089.35,0.00021917,2]
[358819382,1745465437090,-613.57,0.00021917,2]
[358819383,1745465437100,-1159.5,0.00021917,2]
[358819384,1745465437109,-500.0,0.00021917,2]
[358819385,1745465437118,-500.0,0.00021917,2]
[358819386,1745465437128,-500.6784474,0.00021917,2]
[358819387,1745465437138,-594.37,0.00021917,2]
[358819388,1745465437148,-500.0,0.00021917,2]
[358819389,1745465437157,-162.869083,0.00021917,2]
[358819390,1745465437167,-500.0,0.00021917,2]
[358819391,1745465437176,-500.0,0.00021917,2]
[358819392,1745465437186,-500.0,0.00021917,2]
[358819393,1745465437195,-500.0,0.00021917,2]
[358819394,1745465437205,-500.0,0.00021917,2]
[358819395,1745465437215,-606.78164552,0.00021917,2]
[358819396,1745465437224,-770.49,0.00021917,2]
[358819397,1745465437234,-500.0,0.00021917,2]
[358819398,1745465437244,-500.0,0.00021917,2]
[358819399,1745465437254,-500.0,0.00021917,2]
[358819400,1745465437264,-802.02,0.00021917,2]
[358819401,1745465437274,-504.00011293,0.00021917,2]
[358819402,1745465437284,-500.0,0.00021917,2]
[358819403,1745465437294,-500.0,0.00021917,2]
[358819404,1745465437304,-500.0,0.00021917,2]
[358819405,1745465437313,-208.73753372,0.00021917,2]
[358819406,1745465437322,-500.0,0.00021917,2]
[358819407,1745465437332,-500.0,0.00021917,2]
[358819408,1745465437341,-500.0,0.00021917,2]
[358819409,1745465437351,-500.0,0.00021917,2]
[358819410,1745465437361,-500.0,0.00021917,2]
[358819411,1745465437371,-500.0,0.00021917,2]
[358819412,1745465437381,-500.0,0.00021917,2]
[358819413,1745465437390,-502.40224287,0.00021917,2]
[358819414,1745465437400,-500.0,0.00021917,2]
[358819415,1745465437409,-234.47772711,0.00021917,2]
[358819416,1745465437418,-500.0,0.00021917,2]
[358819417,1745465437428,-1786.76,0.00021917,2]
[358819418,1745465437437,-500.0,0.00021917,2]
[358819419,1745465437452,-500.0,0.00021917,2]
[358819420,1745465437468,-585.03,0.00021917,2]
[358819421,1745465437478,-500.0,0.00021917,2]
[358819422,1745465437487,-533.97,0.00021917,2]
[358819423,1745465437496,-506.51508837,0.00021917,2]
[358819424,1745465437506,-500.0,0.00021917,2]
[358819425,1745465437516,-729.58,0.00021917,2]
[358819426,1745465437525,-500.0,0.00021917,2]
[358819427,1745465437535,-500.0,0.00021917,2]
[358819429,1745465437545,-500.0,0.00021917,2]
[358819431,1745465437554,-500.0,0.00021917,2]
[358819433,1745465437564,-504.44519931,0.00021917,2]
[358819435,1745465437574,-500.0,0.00021917,2]
[358819437,1745465437583,-500.0,0.00021917,2]
[358819439,1745465437592,-1411.82,0.00021917,2]
[358819441,1745465437602,-580.6,0.00021917,2]
[358819443,1745465437611,-500.0,0.00021917,2]
[358819445,1745465437621,-500.0,0.00021917,2]
[358819446,1745465437630,-500.0,0.00021917,2]
[358819448,1745465437639,-500.0,0.00021917,2]
[358819450,1745465437648,-500.0,0.00021917,2]
[358819452,1745465437658,-676.44,0.00021917,2]
[358819454,1745465437667,-505.51136482,0.00021917,2]
[358819456,1745465437677,-778.538207,0.00021917,2]
[358819458,1745465437687,-502.06743667,0.00021917,2]
[358819460,1745465437696,-778.538207,0.00021917,2]
[358819462,1745465437708,-500.0,0.00021917,2]
[358819464,1745465437718,-500.0,0.00021917,2]
[358819466,1745465437728,-680.61,0.00021917,2]
[358819468,1745465437737,-778.538207,0.00021917,2]
[358819470,1745465437747,-778.538207,0.00021917,2]
[358819472,1745465437758,-500.0,0.00021917,2]
[358819474,1745465437768,-501.70978019,0.00021917,2]
[358819476,1745465437778,-300.0,0.00021917,2]
[358819478,1745465437787,-500.0,0.00021917,2]
[358819479,1745465437797,-500.0,0.00021917,2]
[358819481,1745465437807,-500.0,0.00021917,2]
[358819483,1745465437816,-500.0,0.00021917,2]
[358819485,1745465437826,-645.34,0.00021917,2]
[358819487,1745465437835,-500.0,0.00021917,2]
[358819489,1745465437844,-500.0,0.00021917,2]
[358819491,1745465437853,-554.86778701,0.00021917,2]
[358819493,1745465437863,-500.0,0.00021917,2]
[358819495,1745465437872,-500.0,0.00021917,2]
[358819496,1745465437881,-500.0,0.00021917,2]
[358819498,1745465437892,-500.0,0.00021917,2]
[358819500,1745465437902,-500.0,0.00021917,2]
[358819502,1745465437915,-500.0,0.00021917,2]
[358819504,1745465437924,-500.0,0.00021917,2]
[358819506,1745465437934,-188.52323041,0.00021917,2]
[358819544,1745465438322,-311.47676959,0.00021917,2]
[358819546,1745465438333,-501.69771574,0.00021917,2]
[358819548,1745465438343,-1091.99,0.00021917,2]
[358819550,1745465438353,-1091.99,0.00021917,2]
[358819552,1745465438362,-1091.99,0.00021917,2]
[358819554,1745465438372,-500.0,0.00021917,2]
[358819556,1745465438381,-1091.99,0.00021917,2]
[358819558,1745465438391,-500.0,0.00021917,2]
[358819560,1745465438401,-1091.99,0.00021917,2]
[358819562,1745465438410,-500.0,0.00021917,2]
[358819563,1745465438420,-1091.99,0.00021917,2]
[358819565,1745465438429,-1091.99,0.00021917,2]
[358819567,1745465438439,-1091.99,0.00021917,2]
[358819569,1745465438449,-500.0,0.00021917,2]
[358819571,1745465438458,-500.0,0.00021917,2]
[358819573,1745465438469,-1091.99,0.00021917,2]
[358819575,1745465438478,-500.0,0.00021917,2]
[358819577,1745465438487,-1091.99,0.00021917,2]
[358819579,1745465438496,-500.0,0.00021917,2]
[358819581,1745465438506,-1091.99,0.00021917,2]
[358819583,1745465438515,-500.0,0.00021917,2]
[358819585,1745465438524,-1091.99,0.00021917,2]
[358819587,1745465438533,-1091.99,0.00021917,2]
[358819589,1745465438543,-505.57072618,0.00021917,2]
[358819590,1745465438554,-1091.99,0.00021917,2]
[358819592,1745465438563,-1091.99,0.00021917,2]
[358819594,1745465438573,-500.0,0.00021917,2]
[358819596,1745465438584,-1091.99,0.00021917,2]
[358819598,1745465438594,-506.12186867,0.00021917,2]
[358819600,1745465438604,-1091.99,0.00021917,2]
[358819602,1745465438613,-500.0,0.00021917,2]
[358819604,1745465438622,-500.0,0.00021917,2]
[358819606,1745465438632,-472.40394451,0.00021917,2]
[358819645,1745465439407,-27.59605549,0.00021917,2]
[358819646,1745465439418,-1091.99,0.00021917,2]
[358819647,1745465439428,-500.0,0.00021917,2]
[358819648,1745465439437,-500.0,0.00021917,2]
[358819649,1745465439447,-500.0,0.00021917,2]
[358819650,1745465439456,-500.0,0.00021917,2]
[358819651,1745465439468,-500.0,0.00021917,2]
[358819652,1745465439479,-500.0,0.00021917,2]
[358819653,1745465439491,-126.63709527,0.00021917,2]
[358819655,1745465439504,-373.36290473,0.00021917,2]
[358819657,1745465439513,-500.0,0.00021917,2]
[358819660,1745465439523,-500.0,0.00021917,2]
[358819662,1745465439535,-500.0,0.00021917,2]
[358819664,1745465439544,-558.6,0.00021917,2]
[358819666,1745465439557,-500.0,0.00021917,2]
[358819667,1745465439568,-508.9488163,0.00021917,2]
[358819668,1745465439579,-500.0,0.00021917,2]
[358819669,1745465439589,-500.0,0.00021917,2]
[358819670,1745465439599,-500.0,0.00021917,2]
[358819671,1745465439608,-500.0,0.00021917,2]
[358819672,1745465439618,-1888.1,0.00021917,2]
[358819673,1745465439627,-500.0,0.00021917,2]
[358819674,1745465439637,-1167.21,0.00021917,2]
[358819675,1745465439648,-500.0,0.00021917,2]
[358819676,1745465439658,-1171.55,0.00021917,2]
[358819677,1745465439668,-500.0,0.00021917,2]
[358819678,1745465439679,-500.0,0.00021917,2]
[358819679,1745465439689,-500.0,0.00021917,2]
[358819680,1745465439698,-151.0,0.00021917,2]
[358819681,1745465439711,-151.0,0.00021917,2]
[358819682,1745465439720,-500.0,0.00021917,2]
[358819683,1745465439730,-500.0,0.00021917,2]
[358819684,1745465439739,-500.0,0.00021917,2]
[358819685,1745465439751,-151.0,0.00021917,2]
[358819686,1745465439762,-151.0,0.00021917,2]
[358819687,1745465439771,-500.0,0.00021917,2]
[358819688,1745465439787,-1341.72,0.00021917,2]
[358819689,1745465439796,-1264.27,0.00021917,2]
[358819690,1745465439806,-500.0,0.00021917,2]
[358819691,1745465439816,-500.0,0.00021917,2]
[358819692,1745465439826,-500.0,0.00021917,2]
[358819693,1745465439835,-501.2003554,0.00021917,2]
[358819694,1745465439845,-500.0,0.00021917,2]
[358819695,1745465439869,-919.41,0.00021917,2]
[358819696,1745465439879,-500.0,0.00021917,2]
[358819697,1745465439889,-500.0,0.00021917,2]
[358819698,1745465439898,-1186.54,0.00021917,2]
[358819699,1745465439908,-720.97,0.00021917,2]
[358819700,1745465439918,-500.0,0.00021917,2]
[358819701,1745465439927,-500.0,0.00021917,2]
[358819702,1745465439937,-500.0,0.00021917,2]
[358819703,1745465439946,-500.0,0.00021917,2]
[358819704,1745465439955,-500.0,0.00021917,2]
[358819705,1745465439966,-500.0,0.00021917,2]
[358819706,1745465439977,-837.67,0.00021917,2]
[358819707,1745465439989,-964.31,0.00021917,2]
[358819708,1745465439998,-669.04,0.00021917,2]
[358819709,1745465440009,-500.0,0.00021917,2]
[358819711,1745465440019,-616.83,0.00021917,2]
[358819712,1745465440030,-481.34956565,0.00021917,2]
[358819713,1745465440040,-500.0,0.00021917,2]
[358819714,1745465440049,-700.63,0.00021917,2]
[358819715,1745465440059,-501.02,0.00021917,2]
[358819716,1745465440069,-500.18,0.00021917,2]
[358819717,1745465440079,-336.27667325,0.00021917,2]
[358819718,1745465440089,-500.0,0.00021917,2]
[358819719,1745465440099,-808.74,0.00021917,2]
[358819720,1745465440108,-754.69,0.00021917,2]
[358819721,1745465440117,-500.0,0.00021917,2]
[358819722,1745465440127,-500.0,0.00021917,2]
[358819723,1745465440136,-628.75834037,0.00021917,2]
[358819724,1745465440145,-814.24,0.00021917,2]
[358819725,1745465440154,-480.75056481,0.00021917,2]
[358819726,1745465440164,-1204.36,0.00021917,2]
[358819727,1745465440174,-406.24853757,0.00021917,2]
[358819728,1745465440184,-453.94119542,0.00021917,2]
[358819729,1745465440193,-500.0,0.00021917,2]
[358819730,1745465440203,-500.0,0.00021917,2]
[358819731,1745465440214,-151.0,0.00021917,2]
[358819732,1745465440223,-151.0,0.00021917,2]
[358819733,1745465440232,-500.0,0.00021917,2]
[358819734,1745465440242,-500.0,0.00021917,2]
[358819735,1745465440252,-365.6304072,0.00021917,2]
[358819736,1745465440266,-157.82585272,0.00021917,2]
[358819737,1745465440280,-502.76787948,0.00021917,2]
[358819738,1745465440290,-500.0,0.00021917,2]
[358819739,1745465440300,-738.58,0.00021917,2]
[358819740,1745465440309,-500.0,0.00021917,2]
[358819741,1745465440319,-500.0,0.00021917,2]
[358819742,1745465440329,-570.56674627,0.00021917,2]
[358819743,1745465440338,-500.0,0.00021917,2]
[358819744,1745465440347,-559.78,0.00021917,2]
[358819745,1745465440357,-500.0,0.00021917,2]
[358819746,1745465440367,-1304.95,0.00021917,2]
[358819747,1745465440377,-1014.93,0.00021917,2]
[358819748,1745465440386,-503.83614825,0.00021917,2]
[358819749,1745465440395,-517.29,0.00021917,2]
[358819750,1745465440407,-1851.87,0.00021917,2]
[358819751,1745465440416,-1376.95,0.00021917,2]
[358819752,1745465440426,-500.0,0.00021917,2]
[358819753,1745465440435,-500.0,0.00021917,2]
[358819754,1745465440444,-500.0,0.00021917,2]
[358819755,1745465440454,-503.21226093,0.00021917,2]
[358819756,1745465440463,-597.92,0.00021917,2]
[358819757,1745465440473,-1076.21,0.00021917,2]
[358819758,1745465440482,-991.06,0.00021917,2]
[358819759,1745465440492,-500.0,0.00021917,2]
[358819760,1745465440501,-500.0,0.00021917,2]
[358819761,1745465440509,-961.07,0.00021917,2]
[358819762,1745465440519,-500.0,0.00021917,2]
[358819763,1745465440674,-500.0,0.00021917,2]
[358819764,1745465440683,-500.0,0.00021917,2]
[358819765,1745465440693,-500.0,0.00021917,2]
[358819766,1745465440703,-500.0,0.00021917,2]
[358819767,1745465440716,-500.8713946,0.00021917,2]
[358819768,1745465440726,-500.0,0.00021917,2]
[358819769,1745465440735,-500.0,0.00021917,2]
[358819770,1745465440746,-500.0,0.00021917,2]
[358819771,1745465440756,-500.0,0.00021917,2]
[358819772,1745465440766,-500.0,0.00021917,2]
[358819773,1745465440776,-500.0,0.00021917,2]
[358819774,1745465440788,-500.0,0.00021917,2]
[358819775,1745465440797,-500.0,0.00021917,2]
[358819776,1745465440806,-500.0,0.00021917,2]
[358819777,1745465440816,-500.0,0.00021917,2]
[358819778,1745465440825,-500.0,0.00021917,2]
[358819779,1745465440834,-504.75730629,0.00021917,2]
[358819780,1745465440844,-500.0,0.00021917,2]
[358819781,1745465440853,-500.0,0.00021917,2]
[358819782,1745465440862,-675.31,0.00021917,2]
[358819783,1745465440871,-500.0,0.00021917,2]
[358819784,1745465440880,-500.0,0.00021917,2]
[358819785,1745465440889,-504.41,0.00021917,2]
[358819786,1745465440899,-500.0,0.00021917,2]
[358819787,1745465440908,-500.0,0.00021917,2]
[358819788,1745465440918,-3174.1,0.00021917,2]
[358819789,1745465440928,-500.0,0.00021917,2]
[358819790,1745465440937,-564.62,0.00021917,2]
[358819791,1745465440946,-500.0,0.00021917,2]
[358819792,1745465440956,-500.0,0.00021917,2]
[358819793,1745465440965,-1274.64,0.00021917,2]
[358819794,1745465440974,-500.0,0.00021917,2]
[358819795,1745465440983,-594.33,0.00021917,2]
[358819796,1745465440992,-500.0,0.00021917,2]
[358819797,1745465441001,-500.0,0.00021917,2]
[358819798,1745465441012,-1081.38,0.00021917,2]
[358819799,1745465441022,-500.0,0.00021917,2]
[358819800,1745465441032,-500.0,0.00021917,2]
[358819801,1745465441041,-500.0,0.00021917,2]
[358819802,1745465441050,-500.0,0.00021917,2]
[358819803,1745465441060,-428.06250819,0.00021917,2]
[358819804,1745465441069,-903.46,0.00021917,2]
[358819805,1745465441078,-993.09,0.00021917,2]
[358819806,1745465441088,-500.0,0.00021917,2]
[358819807,1745465441098,-500.0,0.00021917,2]
[358819808,1745465441108,-151.0,0.00021917,2]
[358819809,1745465441117,-500.0,0.00021917,2]
[358819810,1745465441127,-185.55971792,0.00021917,2]
[358819811,1745465441137,-500.0,0.00021917,2]
[358819812,1745465441147,-565.57,0.00021917,2]
[358819813,1745465441156,-500.0,0.00021917,2]
[358819814,1745465441166,-825.48,0.00021917,2]
[358819815,1745465441176,-501.73816248,0.00021917,2]
[358819816,1745465441185,-500.0,0.00021917,2]
[358819817,1745465441195,-500.0,0.00021917,2]
[358819818,1745465441204,-500.0,0.00021917,2]
[358819819,1745465441214,-1511.41,0.00021917,2]
[358819821,1745465441224,-500.0,0.00021917,2]
[358819822,1745465441233,-500.0,0.00021917,2]
[358819823,1745465441242,-500.0,0.00021917,2]
[358819824,1745465441251,-500.0,0.00021917,2]
[358819825,1745465441260,-280.27331324,0.00021917,2]
[358819826,1745465441269,-638.4,0.00021917,2]
[358819827,1745465441279,-501.17870389,0.00021917,2]
[358819828,1745465441289,-240.99709677,0.00021917,2]
[358819829,1745465441298,-1206.6,0.00021917,2]
[358819830,1745465441307,-1203.49,0.00021917,2]
[358819832,1745465441317,-500.0,0.00021917,2]
[358819834,1745465441327,-500.0,0.00021917,2]
[358819836,1745465441336,-523.73468278,0.00021917,2]
[358819838,1745465441346,-500.0,0.00021917,2]
[358819839,1745465441355,-500.0,0.00021917,2]
[358819840,1745465441364,-500.0,0.00021917,2]
[358819841,1745465441372,-474.28460488,0.00021917,2]
[358819842,1745465441381,-500.0,0.00021917,2]
[358819843,1745465441390,-500.0,0.00021917,2]
[358819844,1745465441399,-500.0,0.00021917,2]
[358819845,1745465441407,-502.98730615,0.00021917,2]
[358819846,1745465441416,-500.0,0.00021917,2]
[358819847,1745465441427,-500.0,0.00021917,2]
[358819848,1745465441436,-500.0,0.00021917,2]
[358819849,1745465441445,-500.0,0.00021917,2]
[358819850,1745465441455,-500.0,0.00021917,2]
[358819851,1745465441464,-500.0,0.00021917,2]
[358819852,1745465441474,-500.0,0.00021917,2]
[358819853,1745465441483,-500.0,0.00021917,2]
[358819854,1745465441493,-500.0,0.00021917,2]
[358819855,1745465441502,-500.0,0.00021917,2]
[358819856,1745465441512,-999.56,0.00021917,2]
[358819857,1745465441521,-500.0,0.00021917,2]
[358819858,1745465441531,-500.0,0.00021917,2]
[358819860,1745465441541,-500.70716535,0.00021917,2]
[358819862,1745465441550,-500.0,0.00021917,2]
[358819863,1745465441559,-2664.66,0.00021917,2]
[358819864,1745465441569,-778.81,0.00021917,2]
[358819865,1745465441578,-500.0,0.00021917,2]
[358819866,1745465441587,-2156.6,0.00021917,2]
[358819867,1745465441596,-500.0,0.00021917,2]
[358819868,1745465441605,-505.45995843,0.00021917,2]
[358819869,1745465441616,-500.0,0.00021917,2]
[358819870,1745465441625,-501.06019913,0.00021917,2]
[358819871,1745465441634,-500.0,0.00021917,2]
[358819872,1745465441645,-515.34,0.00021917,2]
[358819873,1745465441654,-523.82486154,0.00021917,2]
[358819874,1745465441664,-500.0,0.00021917,2]
[358819875,1745465441674,-500.0,0.00021917,2]
[358819876,1745465441683,-500.0,0.00021917,2]
[358819877,1745465441692,-526.7215694,0.00021917,2]
[358819878,1745465441701,-500.0,0.00021917,2]
[358819879,1745465441714,-500.0,0.00021917,2]
[358819880,1745465441723,-819.61,0.00021917,2]
[358819881,1745465441732,-504.88759479,0.00021917,2]
[358819882,1745465441742,-441.35833786,0.00021917,2]
[358819883,1745465441752,-500.0,0.00021917,2]
[358819884,1745465441762,-500.0,0.00021917,2]
[358819885,1745465441771,-1479.13,0.00021917,2]
[358819886,1745465441783,-635.31,0.00021917,2]
[358819887,1745465441793,-1197.039862,0.00021918,2]
[358819888,1745465441803,-151.0,0.00021918,2]
[358819889,1745465441812,-151.0,0.00021918,2]
[358819890,1745465441822,-151.0,0.00021918,2]
[358819891,1745465441832,-151.0,0.00021918,2]
[358819892,1745465441841,-151.0,0.00021918,2]
[358819893,1745465441850,-500.0,0.00021918,2]
[358819894,1745465441861,-500.0,0.00021918,2]
[358819895,1745465441871,-151.0,0.00021918,2]
[358819896,1745465441880,-169.14493145,0.00021918,2]
[358819897,1745465441890,-151.33141315,0.00021918,2]
[358819898,1745465441899,-288.54602626,0.00021918,2]
[358819899,1745465441908,-151.17892941,0.00021918,2]
[358819900,1745465441918,-155.21480403,0.00021918,2]
[358819901,1745465441928,-500.0,0.00021918,2]
[358819902,1745465441937,-151.45710389,0.00021918,2]
[358819903,1745465441946,-500.0,0.00021918,2]
[358819904,1745465441956,-151.38717719,0.00021918,2]
[358819905,1745465441966,-155.52276409,0.00021918,2]
[358819906,1745465441978,-151.0,0.00021918,2]
[358819907,1745465441988,-200.13538004,0.00021918,2]
[358819908,1745465441997,-151.0,0.00021918,2]
[358819909,1745465442007,-199.85897293,0.00021918,2]
[358819910,1745465442016,-151.0,0.00021918,2]
[358819911,1745465442026,-929.87033917,0.00021954,2]
[358819912,1745465442035,-501.06094628,0.00021973,2]
[358819913,1745465442045,-500.0,0.00021973,2]
[358819914,1745465442055,-500.0,0.00021973,2]
[358819915,1745465442064,-500.0,0.00021973,2]
[358819916,1745465442074,-500.0,0.00021973,2]
[358819917,1745465442083,-501.45656333,0.00021973,2]
[358819918,1745465442093,-500.0,0.00021973,2]
[358819919,1745465442102,-151.0,0.00021973,2]
[358819920,1745465442112,-153.31637407,0.00021973,2]
[358819921,1745465442121,-500.0,0.00021973,2]
[358819922,1745465442130,-500.0,0.00021973,2]
[358819923,1745465442140,-500.0,0.00021973,2]
[358819924,1745465442150,-500.0,0.00021973,2]
[358819925,1745465442159,-151.0,0.00021973,2]
[358819926,1745465442168,-151.0,0.00021973,2]
[358819927,1745465442178,-1089.35,0.00021999,2]
[358819928,1745465442187,-1091.99,0.00021999,2]
[358819929,1745465442196,-500.0,0.00021999,2]
[358819930,1745465442206,-157.2502195,0.00022,2]
[358819931,1745465442216,-3513.0,0.00022,2]
[358819932,1745465442225,-1714.0,0.00022,2]
[358819934,1745465442235,-151.0,0.00022028,2]
[358819935,1745465442244,-151.0,0.00022028,2]
[358819938,1745465442254,-151.0,0.00022028,2]
[358819939,1745465442264,-265.64518539,0.00022028,2]
[358819941,1745465442274,-500.0,0.00022028,2]
[358819943,1745465442283,-205.49669063,0.00022028,2]
[358819945,1745465442293,-151.0,0.00022028,2]
[358819947,1745465442302,-203.7246005,0.00022082,2]
[358819949,1745465442311,-929.87033917,0.00022091,2]
[358819951,1745465442321,-500.0,0.00022173,2]
[358819952,1745465442330,-303.42912297,0.00022173,2]
[358819953,1745465442339,-500.0,0.00022173,2]
[358819954,1745465442349,-524.12934295,0.00022173,2]
[358819955,1745465442358,-501.31707367,0.00022173,2]
[358819956,1745465442367,-500.0,0.00022173,2]
[358819957,1745465442377,-500.0,0.00022173,2]
[358819958,1745465442387,-500.19844398,0.00022173,2]
[358819959,1745465442397,-500.0,0.00022173,2]
[358819960,1745465442406,-501.2718153,0.00022173,2]
[358819961,1745465442416,-500.0,0.00022173,2]
[358819962,1745465442425,-339.82643158,0.00022173,2]
[358819964,1745465442435,-500.0,0.00022173,2]
[358819965,1745465442444,-500.0,0.00022173,2]
[358819967,1745465442453,-517.73566965,0.00022173,2]
[358819968,1745465442463,-500.0,0.00022173,2]
[358819969,1745465442472,-500.0,0.00022173,2]
[358819970,1745465442481,-500.65655041,0.00022173,2]
[358819971,1745465442490,-501.5381741,0.00022173,2]
[358819972,1745465442500,-500.0,0.00022173,2]
[358819973,1745465442509,-500.0,0.00022173,2]
[358819974,1745465442519,-500.0,0.00022173,2]
[358819975,1745465442528,-500.0,0.00022173,2]
[358819976,1745465442538,-500.0,0.00022173,2]
[358819977,1745465442547,-151.0,0.00022173,2]
[358819978,1745465442556,-500.0,0.00022173,2]
[358819979,1745465442566,-539.30749052,0.00022173,2]
[358819980,1745465442575,-288.94359941,0.00022173,2]
[358819981,1745465442584,-500.0,0.00022173,2]
[358819982,1745465442594,-500.89634009,0.00022173,2]
[358819983,1745465442603,-500.0,0.00022173,2]
[358819984,1745465442612,-500.0,0.00022173,2]
[358819985,1745465442622,-500.0,0.00022173,2]
[358819986,1745465442631,-500.0,0.00022173,2]
[358819987,1745465442642,-500.53559839,0.00022173,2]
[358819988,1745465442651,-500.0,0.00022173,2]
[358819989,1745465442660,-1000.0,0.00022173,2]
[358819990,1745465442670,-151.0,0.00022173,7]
[358819991,1745465442679,-1089.35,0.00022188,2]
[358819992,1745465442689,-1089.35,0.00022188,2]
[358819993,1745465442698,-1089.35,0.00022188,2]
[358819994,1745465442710,-1089.35,0.00022188,2]
[358819995,1745465442720,-1089.54386726,0.00022188,2]
[358819996,1745465442729,-1091.99,0.00022188,2]
[358819997,1745465442739,-1091.99,0.00022188,2]
[358819998,1745465442748,-1091.99,0.00022188,2]
[358819999,1745465442758,-1091.99,0.00022188,2]
[358820000,1745465442768,-1092.08,0.00022188,2]
[358820001,1745465442779,-500.0,0.00022188,2]